Cogmind - Beta 16.1 @@@ ROGUE MODE // 2026.02.10 @ 03:37:59 Player: Megaknight51 Result: Self-destructed Performance ------------- Evolutions (2) 1000 Regions Visited (3) 600 Robots Destroyed (18) 90 Value Destroyed (366) 366 Prototype IDs (14) 280 Alien Tech Used (0) 0 Bonus (157) 157 TOTAL SCORE: 2493 Bonus ------- Follower Combat Kills 194 Friendly Fire -37 Cogmind --------- Core Integrity 278/550 Matter 73/300 Energy 800/800 System Corruption 0% Temperature Cool (0) Movement Core (300) Ox5 Location -8/Materials Parts ------- > --- POWER (1) -------- Hybrid Deuterium Engine > --- PROPULSION (2) --- (None) > --- UTILITY (3) ------ Medium Storage Unit Machine Analyzer > --- WEAPON (5) ------- (None) > --- INVENTORY (10) --- Hybrid Deuterium Engine High-capacity Matter Pod (0) Improved Targeting Computer Scrap Shield Hacking Suite System Shield Improved Light Cannon Heavy Rocket Launcher Heavy Rocket Launcher Peak State ------------ > --- POWER ------------ Hybrid Deuterium Engine > --- PROPULSION ------- Light Treads Light Treads > --- UTILITY ---------- Medium Storage Unit Machine Analyzer Improved Terrain Scanner > --- WEAPON ----------- 1B-0RG's Assimilator > --- INVENTORY -------- Hybrid Deuterium Engine Hybrid Deuterium Engine High-capacity Matter Pod Scrap Shield Battle Cannon Heavy Rocket Launcher Heavy Rocket Launcher [Rating: 80] Favorites ----------- Power Light Ion Engine Engine Light Ion Engine Propulsion Light Treads Treads Light Treads Utility Core Shielding Device Improved Terrain Scanner Storage Medium Storage Unit Processor Machine Analyzer Protection Core Shielding Weapon Light Assault Rifle Energy Gun Riot Gun Ballistic Gun Light Assault Rifle Ballistic Cannon Battle Cannon Impact Weapon Hammer Special Melee Weapon 1B-0RG's Assimilator Build | -11 -10 -10 -8 ------- Run | Yrd Mat Sub Mat Slots Evolved 4 | . . . 4 Power . | . . . . Propulsion . | . . . . Utility 1 | . . . 1 Weapon 3 | . . . 3 Parts Attached 30 | 7 9 7 7 Power 5 | 1 1 2 1 Engine 5 | 1 1 2 1 Core . | . . . . Reactor . | . . . . Propulsion 6 | 2 3 1 . Treads 6 | 2 3 1 . Leg . | . . . . Wheel . | . . . . Hover . | . . . . Flight . | . . . . Utility 10 | 2 2 1 5 Device 2 | 1 . . 1 Storage 3 | 1 1 . 1 Processor 2 | . . . 2 Hackware . | . . . . Protection 3 | . 1 1 1 Artifact . | . . . . Weapon 9 | 2 3 3 1 Energy Gun 1 | . . 1 . Energy Cannon . | . . . . Ballistic Gun 5 | 2 3 . . Ballistic Cannon 1 | . . 1 . Launcher . | . . . . Special Weapon . | . . . . Impact Weapon 1 | . . 1 . Slashing Weapon . | . . . . Piercing Weapon . | . . . . Special Melee Weapon 1 | . . . 1 Unidentified Prototypes 1 | . . . 1 Parts Lost 6 | . . 2 4 Power . | . . . . Propulsion 3 | . . 1 2 Utility 1 | . . . 1 Weapon 2 | . . 1 1 Highest Loss Streak 4 | . . 1 4 To Critical Strikes 1 | . . 1 . Average Backups 8 | 2 8 8 8 Power 1 | . 1 1 1 Propulsion . | . . . . Utility 3 | . 3 4 3 Weapon 2 | . 2 1 3 Tool/Special . | . . . . Unused Backups 15 | . 4 3 8 Power 4 | . 1 1 2 Propulsion 2 | . 2 . . Utility 4 | . . 1 3 Weapon 5 | . 1 1 3 Tool/Special . | . . . . Average Slot Usage (%) 89 | . 100 99 58 Engine 12 | . 14 14 9 Treads 25 | . 28 27 17 Device 1 | . . . 5 Storage 12 | . 14 14 9 Processor 1 | . . . 6 Protection 10 | . 13 14 2 Ballistic Gun 16 | . 28 14 . Ballistic Cannon 3 | . . 8 . Impact Weapon 1 | . . 4 . Special Melee Weapon 2 | . . . 8 Peak Build Rating 80 | 7 10 15 80 Average Rating 24 | 5 7 9 75 On Entrance 7 | . 7 10 14 Avg Prop Armor Cover (%) . | . . . . Naked Turns . | . . . . Heaviest Build 73 | 11 22 22 73 Greatest Support 40 | 40 40 40 40 Greatest Overweight (x) 24 | . . 1 24 Average Overweight (x) . | . . . 1 Largest Inventory Capacity 10 | 8 10 10 10 Average Capacity 9 | 7 8 10 10 Most Carried 10 | 3 10 10 10 Average Carried 8 | 2 8 9 9 Final Capacity 10 | 8 10 10 10 Final Carried 10 | 3 10 10 10 Class Distribution -------------------- 100% | Mutant Dominant Class ---------------- Mutant | -10/Materials Mutant | -10/Subcaves Mutant | -8/Materials Resources | -11 -10 -10 -8 ----------- Run | Yrd Mat Sub Mat Matter Collected 1166 | 287 365 296 218 Remotely . | . . . . Salvage Created 560 | 93 332 135 . Parts 34 | 3 24 7 . Haulers Intercepted 1 | . 1 . . Recyclers Shooed . | . . . . Parts Field Recycled . | . . . . Retrieved Matter . | . . . . Parts Self-Destructed . | . . . . Prevented . | . . . . Parts Restored . | . . . . Kills | -11 -10 -10 -8 ------- Run | Yrd Mat Sub Mat Combat Hostiles Destroyed 12 | . 8 4 . Guns 10 | . 8 2 . Cannons 2 | . . 2 . Classes Destroyed 8 | 2 5 1 . Worker 1 | . 1 . . Builder 2 | . 2 . . Tunneler 1 | 1 . . . Hauler 1 | . 1 . . Recycler 1 | 1 . . . Swarmer 5 | . 5 . . Artisan 1 | . . 1 . Subdweller 7 | . 3 4 . Best Kill Streak 5 | 2 5 2 . Combat Bots Only 3 | . 3 2 . Max Kills in Single Turn 2 | 1 2 1 . Gunslinging 1 | . 1 . . Exploded . | . . . . Melee . | . . . . Uniques/NPCs Destroyed . | . . . . Combat | -11 -10 -10 -8 -------- Run | Yrd Mat Sub Mat Hostile Shots Fired 108 | . 42 33 33 Missed 32 | . 11 12 9 Hits 76 | . 31 21 24 Projectile 76 | . 31 21 24 Critical Strikes 4 | . . 1 3 Actively Blocked 2 | . . 2 . Damage Taken 1669 | . 424 497 748 Core 392 | . 43 77 272 Absorbed by Shields . | . . . . Redirected to Shielding 24 | . 8 16 . Regen/Repaired (Parts) 76 | . . . 76 Core Remaining (%) 76 | 100 . 52 . Volleys Fired 66 | 10 38 18 . Largest 2 | 2 2 2 . Hottest 53 | 40 40 53 . Shots Fired 132 | 20 76 36 . Gun 115 | 20 76 19 . Cannon 17 | . . 17 . Launcher . | . . . . Special . | . . . . Kinetic 132 | 20 76 36 . Thermal . | . . . . Explosive . | . . . . Electromagnetic . | . . . . Robot Hit Streak 15 | 5 8 15 . Robot Miss Streak 4 | 3 4 1 . Penetration Max . | . . . . Secondary Targets 1 | . 1 . . Max Gunslinging Chain 1 | . 1 . . Shots Hit Robots 89 | 13 48 28 . Core Hits 34 | 5 22 7 . Critical Kills . | . . . . Critical Parts Destroyed 2 | . 1 1 . Critical Strikes 4 | . 1 3 . Destroy 2 | . 1 1 . Blast 2 | . . 2 . Melee Attacks 6 | . . 6 . Impact 6 | . . 6 . Slashing . | . . . . Piercing . | . . . . Sneak Attacks . | . . . . Combat Hostiles . | . . . . Follow-up Attacks . | . . . . Damage Inflicted 1017 | 111 452 454 . Guns 741 | 110 447 184 . Cannons 270 | . . 270 . Explosions . | . . . . Melee . | . . . . Ramming 6 | 1 5 . . Kinetic 1011 | 110 447 454 . Thermal . | . . . . Explosive . | . . . . Electromagnetic . | . . . . Impact . | . . . . Slashing . | . . . . Piercing . | . . . . Highest Corruption 2 | . 2 2 . Average Corruption 2 | . 2 2 . Corruption Purged . | . . . . Corruption Blocked . | . . . . Effects 23 | . 6 17 . Message Errors 5 | . 1 4 . Matter Fused 7 | . 2 5 . Heat Flow Errors 2 | . 1 1 . Energy Discharges 2 | . 1 1 . Parts Rejected 1 | . . 1 . Data Loss (minor) 3 | . 1 2 . Data Loss (major) 1 | . . 1 . Misfires 1 | . . 1 . Weapon Failures 1 | . . 1 . Overload Shots . | . . . . Overflow Damage . | . . . . Projectiles . | . . . . Explosions . | . . . . Melee . | . . . . Knockbacks 3 | . . 3 . Impact . | . . . . Kinetic 3 | . . 3 . Secondary . | . . . . Self-Inflicted Damage . | . . . . Shots . | . . . . Rammed 2 | 1 1 . . Targets Rammed 3 | 1 2 . . Kicked . | . . . . Crushed 1 | . 1 . . Highest Temperature 182 | . 182 171 . Average Temperature 103 | . 106 94 . Received Heat Transfer 165 | . 30 54 81 Siege Activations . | . . . . Martial Activations . | . . . . Shielding Activations . | . . . . Robots Disrupted . | . . . . Combat Hostiles . | . . . . Robots Corrupted . | . . . . Combat Hostiles . | . . . . Parts Fried . | . . . . Impact Corruptions . | . . . . Robots Melted . | . . . . Combat Hostiles . | . . . . Parts Melted . | . . . . Heat Transferred . | . . . . Parts Sabotaged . | . . . . Parts Stolen . | . . . . Parts Stripped . | . . . . Power Chain Reactions . | . . . . Alert | -11 -10 -10 -8 ------- Run | Yrd Mat Sub Mat Maximum Alert Level . | . . . . Low Security (%) 100 | 100 100 . 100 Level 1 . | . . . . Level 2 . | . . . . Level 3 . | . . . . Level 4 . | . . . . Level 5 . | . . . . High Security . | . . . . Max Security . | . . . . Peak Influence 86 | 5 70 . 86 Initial . | . . . . Average 13 | . 9 . 22 Influence Increases 408 | 10 152 . 246 Destroy 0b10 Robot/C 260 | . 100 . 160 Destroy 0b10 Robot/NC 30 | 10 20 . . Destroy Leader 32 | . 12 . 20 Allied During Kill 15 | . . . 15 Successful Hack 26 | . 20 . 6 Disable Machine 15 | . . . 15 Lose Combat Pursuer 30 | . . . 30 Influence Decreases 408 | 10 152 . 246 Time Decay 322 | 10 152 . 160 Lost Ally 86 | . . . 86 Squads Dispatched 3 | . . . 3 Investigation 1 | . . . 1 Extermination . | . . . . Reinforcement 2 | . . . 2 Assault . | . . . . Garrison . | . . . . Intercept . | . . . . Searches Triggered . | . . . . Construction Impeded . | . . . . Haulers Reinforced . | . . . . Active Scanning Responses . | . . . . Cargo Convoy Interrupts . | . . . . Stealth | -11 -10 -10 -8 --------- Run | Yrd Mat Sub Mat Distress Signals 3 | . 1 . 2 Communications Jammed . | . . . . Distress Signals . | . . . . Times Spotted 40 | . 14 5 21 Peak Tracking Total 4 | . 4 2 4 Tactical Retreats 2 | . . . 2 Traps | -11 -10 -10 -8 ------- Run | Yrd Mat Sub Mat Traps Triggered 2 | . 1 1 . Indirectly . | . . . . Trap Hack Attempts . | . . . . Triggered . | . . . . Disarmed . | . . . . Reprogrammed . | . . . . Reused . | . . . . Traps Extracted . | . . . . Installed . | . . . . Triggered . | . . . . Machines | -11 -10 -10 -8 ---------- Run | Yrd Mat Sub Mat Machines Disabled 1 | . . . 1 Max in Single Turn . | . . . . Machines Repaired . | . . . . Machines Dismantled . | . . . . Machines Sabotaged . | . . . . Overloaded Fab Kills . | . . . . Hacking | -11 -10 -10 -8 --------- Run | Yrd Mat Sub Mat Machines Accessed 6 | . 3 1 2 Terminals 5 | . 3 . 2 Fabricators . | . . . . Repair Stations . | . . . . Recycling Units . | . . . . Scanalyzers . | . . . . Garrison Access . | . . . . Total Hacks 17 | . 8 1 8 Successful 6 | . 3 1 2 Failed 10 | . 4 . 6 Catastrophic 2 | . . . 2 Database Lockouts 1 | . 1 . . Manual 14 | . 9 . 5 Terminals 16 | . 8 . 8 Fabricators . | . . . . Repair Stations . | . . . . Recycling Units . | . . . . Scanalyzers . | . . . . Garrison Access . | . . . . Terminal Hacks 6 | . 3 1 2 Robot Analysis 2 | . 1 . 1 Branch Access Points 1 | . 1 . . Terminal Index 2 | . 1 . 1 Proto ID Catalog 1 | . . 1 . Fabricator Hacks . | . . . . Repair Station Hacks . | . . . . Recycling Unit Hacks . | . . . . Scanalyzer . | . . . . Garrison Access Hacks . | . . . . Unauthorized Hacks . | . . . . Terminals . | . . . . Fabricators . | . . . . Repair Stations . | . . . . Recycling Units . | . . . . Scanalyzers . | . . . . Garrison Access . | . . . . Data Cores Recovered . | . . . . Used . | . . . . Hacking Detections 5 | . 3 . 2 Full Trace Events 1 | . . . 1 Feedback Events . | . . . . Feedback Blocked . | . . . . Robot Schematics Acquired . | . . . . Robots Built . | . . . . Authchips . | . . . . Time . | . . . . Total Robot Build Rating . | . . . . Part Schematics Acquired . | . . . . Parts Built . | . . . . Authchips . | . . . . Time . | . . . . Total Part Build Rating . | . . . . Part Studies Acquired . | . . . . Parts Repaired . | . . . . Time . | . . . . Parts Recycled . | . . . . Recycled Matter . | . . . . Retrieved Matter . | . . . . Retrieved Components . | . . . . Parts Scanalyzed . | . . . . Part Schematics Acquired . | . . . . Parts Damaged . | . . . . Bothacking | -11 -10 -10 -8 ------------ Run | Yrd Mat Sub Mat Used RIF Installer . | . . . . Robots Hacked . | . . . . Non-combat . | . . . . Combat . | . . . . Robot Hacks Applied . | . . . . Relay Couplers Released . | . . . . Fabnet Peak Effective % . | . . . . Robots Rewired . | . . . . Allies Hacked . | . . . . Hacks Repelled . | . . . . Allies | -11 -10 -10 -8 -------- Run | Yrd Mat Sub Mat Total Allies . | . . . . Largest Group . | . . . . Highest-Rated Group . | . . . . Highest-Rated Ally . | . . . . Total Orders 3 | . . . 3 STAY 1 | . . . 1 FOLLOW 2 | . . . 2 Ally Attacks 46 | . . . 46 Total Damage 882 | . . . 882 Kills 8 | . . . 8 Allies Corrupted . | . . . . Allies Melted . | . . . . Borg Created 6 | . . . 6 Largest Collective 3 | . . . 3 Intel | -11 -10 -10 -8 ------- Run | Yrd Mat Sub Mat Active Infowar (turns) 508 | 56 19 . 433 Terrain 411 | . . . 411 Seismic 75 | 56 19 . . Machine Analysis 433 | . . . 433 Robot Analysis Total 2 | . 1 . 1 Derelict Logs Recovered 1 | . . 1 . Drone Launches . | . . . . Drone Recoveries . | . . . . Exploration | -11 -10 -10 -8 ------------- Run | Yrd Mat Sub Mat Turns Passed 2567 | 134 975 832 626 Spaces Moved 1212 | 63 486 454 209 Core 12 | 6 . . 6 Treads 1200 | 57 486 454 203 Legs . | . . . . Wheels . | . . . . Hover . | . . . . Flight . | . . . . Fastest Speed 50 | 50 160 160 160 Average Speed 174 | 149 160 160 246 Slowest Speed 1250 | 160 160 240 1250 Overloaded Moves . | . . . . Propulsion Burnouts . | . . . . Robots Hopped . | . . . . Potential Cave-ins . | . . . . Cave-ins Triggered . | . . . . Exploration Rate (%) 23 | 5 48 30 10 Regions Visited 3 Branch Regions 1 Pre-discovered Areas 1 | . . 1 . Known Exits Taken . | . . . . Unknown Exits Taken 3 | 1 1 1 . Scrap Searched 2 | . . 2 . Spaces Dug . | . . . . Terrain Destroyed . | . . . . Melee . | . . . . Projectile . | . . . . AOE . | . . . . Terrain Rammed . | . . . . Walls Destroyed . | . . . . Machines Disabled . | . . . . Actions | -11 -10 -10 -8 --------- Run | Yrd Mat Sub Mat Total 1524 | 83 622 509 310 Wait 140 | . 65 6 69 Move 1209 | 62 485 453 209 Hop . | . . . . Pick Up 26 | 3 10 4 9 Fast Attach 9 | 7 1 . 1 Attach 7 | . . 2 5 Detach 4 | . 1 . 3 Swap 23 | . 8 12 3 Drop 25 | . 12 8 5 Fire 66 | 10 38 18 . Melee 6 | . . 6 . Ram . | . . . . Kick . | . . . . Crush 3 | 1 2 . . Escape Stasis . | . . . . Rewire . | . . . . Trap . | . . . . Miscellaneous 6 | . . . 6 Route ------- -11/Scrapyard -10/Materials (discovered 4 exits: [*Mat x2] / *Min / *Sub) -10/Subcaves -8/Materials History --------- Turn | Location | Event 29 | -11/Scrapyard | Discovered new exit (range 15) 135 | -11/Scrapyard | Entered Materials 309 | -10/Materials | Build established: Mutant 325 | -10/Materials | Discovered new exit (range 7) 384 | -10/Materials | Discovered new exit (range 13) 527 | -10/Materials | Discovered new exit (range 15) 535 | -10/Materials | Discovered new exit (range 15) 565 | -10/Materials | Central database locked down 565 | -10/Materials | Identified exit to Mines 935 | -10/Materials | Derelicts attacked the area 1110 | -10/Materials | Entered Subcaves 1111 | -10/Subcaves | Approached by a straggling Scientist 1123 | -10/Subcaves | Shifting Twisted Machinery released Battle Cannon 1131 | -10/Subcaves | Shifting Twisted Machinery released Scrap Shield 1314 | -10/Subcaves | Shifting Twisted Machinery released Flamer 1712 | -10/Subcaves | Discovered new exit (range 9) 1815 | -10/Subcaves | Visited 4L-MR0's lab 1895 | -10/Subcaves | Found Prototype Special Melee Weapon 1942 | -10/Subcaves | Entered Materials 1942 | -8/Materials | Evolved 4 slots: Utility x1, Weapon x3 1948 | -8/Materials | Identified 1B-0RG's Assimilator 2122 | -8/Materials | Assimilating Informer 3a into Collective. 2127 | -8/Materials | Assimilating Engineer 3a into Collective. 2163 | -8/Materials | Assimilating Pest 3a into Collective. 2172 | -8/Materials | Assimilating Technician 3a into Collective. 2384 | -8/Materials | Assimilating Excavator 3a into Collective. 2418 | -8/Materials | Assimilating Trooper 3a into Collective. 2568 | -8/Materials | Self-destructed Last Messages --------------- 02532_ Lgt. Treads destroyed. 02536_ Terminal disabled. 02538_ Lgt. Treads destroyed. 02538_ Knocked back. 02539_ U-05 Engineer builds a Wall. 02540_ Atomic Centrifuge disabled. 02542_ Knocked back. 02543_ U-05 Engineer builds a Wall. 02546_ 1B-0RG's Assimilator destroyed. 02546_ Critical hit (Blast). 02547_ K-01 Serf collects debris. 02556_ Imp. Terrain Scanner destroyed. 02556_ Critical hit (Blast). 02556_ Knocked back. 02559_ K-01 Serf collects debris. 02561_ U-05 Engineer knocked back. 02562_ K-01 Serf collects debris. 02566_ Penetrated by Slug. 02566_ Knocked back. 02566_ K-01 Serf collects debris. Map ----- +----------------------------------------------------+ | ????????????????????? ????????????????????????? | | ??????#####???????? ?? ???????????????????????? | | ??????# #??????#???? ????????????????????????? | | ??????#* #####???#??? ???#??"?????????????????? | | ??????#] #???? ? ???#????????????????????? | | ??????#] #???#? ???????????????????????? | | ??????#!! #########+##??? ???????????????????? | | ??????#!! ##"""#?# ###?????????????????????? | | ????#?##### ##"T"### #?? ????###?????????????? | | ???#??????#! #??? ???????"""?????????? | | ?????????## +???????????"T"?????????? | | ?#????#??## """"""" #????? ?????????????????? | | ########### """"""" ##????##? ??????????????? | | # # """"""" ##?##?#??? ?????????????? | | # # """"""" ####?##"""?????????????? | | # # """"""" #??????"""?????????????? | | # """ """ + #??????"""?????????????? | | # """ """ # #??????? ??????????????? | | # """ """ #* ####### ###?#??????????????????? | | # * # = # !! ####+#####??#?????????????????? | | # #%=[# ! #% ! #??#?????#???????????? | | ###########%%*+%!! #"" % ""###?#????????????????? | | ? ??#####=*!# #"T% """#???#?????#??????????? | | ??? ##??### | #! *#" """#??#?##?#????????????? | | ????##### ###### % % #???#?#??????????????? | | ??? ??######/####### @""##??????##???????????? | | ?????### ! ### k *"""#?#??##?#?#??????????? | | ?????### T ! """ ### H ""#??##????????????????? | | ? ???### """ ### %]gw* #??#???#??#??????????? | | ?????### """ #######/####?#?##???????????????? | | ????#?## [ ####?##%#???????#?#?????????????? | | ??????## ]] ####?##%##?##?????#?????????????? | | ???? ? + ]] ##?##?#u##??????????????????????? | | #???#### [ ]] ###?#?#g#????#??????????????????? | | ??????##############???#*#????????#??????????????? | | ??????#############????#!##????#???#?????????????? | | ????##??##?#???? ??????#=#???????????????????????? | | ???#???????#??? ? ?????# #???#???????????????????? | | ??????????????"????????# ##??????????????????????? | | ???????????##???? ????? ???????????????????????? | | ???????????????????? ? ? ?????????????????????? | | ?????????#??????????"?? ???????????????????????? | | ??????????????????????? ???????????????????????? | | ??????????????? ??????? ?????? ????????????????? | | ??????????????????????? ???????????????????????? | | ??????????????????????? ???????????????????????? | | ??????????????????????? ???????????????????????? | | ?????????????????????? ???????????????????????? | | ??????????????????????? ???????????????????????? | | ??????????????????????? ???????????????????????? | +----------------------------------------------------+ Best States ------------- Heat Dissipation 31 Energy Generation 15 Energy Capacity 800 Matter Stores 300 Matter Capacity 500 Sight Range 16 Terrain Scan Range 16 Terrain Scan Density 10 Core Shielding 20 Evasion (%) 50 Recoil Reduction 2 Item Schematics ----------------- None Robot Schematics ------------------ None Fabricated ------------ Nothing Repaired ---------- Nothing Studied --------- None Alien Tech Used ----------------- None Achievements -------------- None Challenges ------------ None Game ------ Seed ProtonBottomlessBasin Manual? 0 Play Time 00:18:01 Cumulative 58.2 hours Start 2026.02.10 @ 03:21:28 End 2026.02.10 @ 03:37:59 Sessions 1 Manual Loads 0 Difficulty Rogue Special Mode None Game No. 118 Rogue 118 Adventurer 0 Explorer 0 Win Type - Total 0 Types 0/0/0/0/0/0/0/0/0/0 Lore% 35 Gallery% 31 Achievement% 29 Wizard Run 0 Options --------- Layout 0 ASCII 0 Keyboard 1 Movement Arrows Keybinds 0 Fullscreen 1 Font 18/Smallcaps Map View 38x25 Zoom Use 92% Tactical HUD 1 Map Filters NONE Filters NONE Steam 1 RUN: 67898f80-0773-4e64-a093-300d7b62ad1a